fUSD/lending_fUSD_20260610
["ID","MTS","AMOUNT","RATE_DAILY","PERIOD"]
[424642880,1781026259000,-158.0,0.00029,4]
[424642894,1781026259000,-1001.22123421,0.00029,2]
[424642913,1781026259000,-151.0,0.00029,7]
[424642904,1781026259000,-774.886168,0.00029,7]
[424642915,1781026259000,-151.0,0.00029,7]
[424642911,1781026259000,-2416.224079,0.00029,7]
[424642907,1781026259000,-151.0,0.00029,7]
[424642901,1781026259000,-774.886158,0.00029,7]
[424642910,1781026259000,-2416.224079,0.00029,7]
[424642916,1781026259000,-215.89329178,0.00029,30]
[424642909,1781026259000,-2416.224079,0.00029,7]
[424642908,1781026259000,-151.0,0.00029,7]
[424642912,1781026259000,-2416.22407592,0.00029,7]
[424642923,1781026259000,-652.891274,0.00029,7]
[424642921,1781026259000,-817.801722,0.00029,7]
[424642919,1781026259000,-817.801717,0.00029,7]
[424642920,1781026259000,-817.801717,0.00029,7]
[424642922,1781026259000,-652.891274,0.00029,7]
[424642885,1781026259000,-158.0,0.00029,4]
[424642918,1781026259000,-817.801717,0.00029,7]
[424642900,1781026259000,-388.607727,0.00029,7]
[424642914,1781026259000,-151.0,0.00029,7]
[424642902,1781026259000,-774.886158,0.00029,7]
[424642917,1781026259000,-215.89329178,0.00029,7]
[424642891,1781026259000,-157.0,0.00029,4]
[424642882,1781026259000,-158.0,0.00029,4]
[424642883,1781026259000,-158.0,0.00029,4]
[424642886,1781026259000,-158.0,0.00029,4]
[424642893,1781026259000,-157.0,0.00029,4]
[424642898,1781026259000,-388.607731,0.00029,7]
[424642881,1781026259000,-158.0,0.00029,4]
[424642895,1781026259000,-511.47172265,0.00029,2]
[424642884,1781026259000,-158.0,0.00029,4]
[424642887,1781026259000,-161.0,0.00029,4]
[424642879,1781026259000,-158.0,0.00029,4]
[424642896,1781026259000,-1574533.27585147,0.00029,30]
[424642889,1781026259000,-157.0,0.00029,4]
[424642897,1781026259000,-388.607731,0.00029,7]
[424642899,1781026259000,-388.607731,0.00029,7]
[424642906,1781026259000,-151.0,0.00029,7]
[424642903,1781026259000,-774.886158,0.00029,7]
[424642892,1781026259000,-157.0,0.00029,4]
[424642905,1781026259000,-288.517669,0.00029,7]
[424642971,1781026260000,-315.51687126,0.00029045,2]
[424642955,1781026260000,-2249.52,0.00029042,7]
[424642960,1781026260000,-405.87411124,0.00029045,2]
[424642958,1781026260000,-366.57699731,0.00029045,2]
[424642957,1781026260000,-395.18129286,0.00029045,2]
[424642959,1781026260000,-640.97978428,0.00029045,2]
[424642956,1781026260000,-2247.6,0.00029042,7]
[424642953,1781026260000,-2247.6,0.0002901,2]
[424642972,1781026260000,-305.14821818,0.00029045,2]
[424642954,1781026260000,-166.6875,0.00029041,2]
[424642961,1781026260000,-405.17928473,0.00029045,2]
[424642962,1781026260000,-853.62537209,0.00029045,2]
[424642929,1781026260000,-160.0,0.00029,7]
[424642963,1781026260000,-782.23374087,0.00029045,2]
[424642965,1781026260000,-805.63965568,0.00029045,2]
[424642970,1781026260000,-190.08407119,0.00029045,2]
[424642967,1781026260000,-312.97348886,0.00029045,2]
[424642969,1781026260000,-452.29688335,0.00029045,2]
[424642966,1781026260000,-198.21724785,0.00029045,2]
[424642973,1781026260000,-403.8715351,0.00029045,2]
[424642975,1781026260000,-304.4457188,0.00029045,2]
[424642976,1781026260000,-244.92839459,0.00029045,2]
[424642977,1781026260000,-161.55338496,0.00029045,2]
[424642978,1781026260000,-423.0350187,0.00029045,2]
[424642952,1781026260000,-2249.52,0.0002901,2]
[424642964,1781026260000,-356.99859836,0.00029045,2]
[424642951,1781026260000,-961.225288,0.00029,7]
[424642930,1781026260000,-403.018373,0.00029,7]
[424642944,1781026260000,-1530.699804,0.00029,7]
[424642925,1781026260000,-652.891272,0.00029,7]
[424642927,1781026260000,-403.018373,0.00029,7]
[424642924,1781026260000,-652.891274,0.00029,7]
[424642928,1781026260000,-160.0,0.00029,30]
[424642926,1781026260000,-223.89524,0.00029,7]
[424642979,1781026260000,-206.53983365,0.00029045,2]
[424642931,1781026260000,-403.018373,0.00029,7]
[424642932,1781026260000,-403.018378,0.00029,7]
[424642938,1781026260000,-428.871314,0.00029,7]
[424642936,1781026260000,-223.960333,0.00029,7]
[424642935,1781026260000,-223.960333,0.00029,7]
[424642945,1781026260000,-151.0,0.00029,7]
[424642934,1781026260000,-223.960333,0.00029,7]
[424642933,1781026260000,-527.30188811,0.00029,2]
[424642939,1781026260000,-6620.97,0.00029,2]
[424642948,1781026260000,-151.0,0.00029,7]
[424642940,1781026260000,-428.871314,0.00029,7]
[424642950,1781026260000,-1530.699804,0.00029,7]
[424642949,1781026260000,-616.582569,0.00029,7]
[424642947,1781026260000,-1530.699804,0.00029,7]
[424642941,1781026260000,-428.871314,0.00029,7]
[424642943,1781026260000,-616.582569,0.00029,7]
[424642946,1781026260000,-616.582569,0.00029,7]
[424642942,1781026260000,-428.87132,0.00029,7]
[424642937,1781026260000,-223.960329,0.00029,7]
[424642980,1781026260000,-204.54620729,0.00029045,2]
[424642968,1781026260000,-326.00060111,0.00029045,2]
[424642983,1781026260000,-311.31299407,0.00029045,2]
[424643011,1781026260000,-668.65185756,0.00029205,2]
[424643019,1781026260000,-11500.39,0.00029299,7]
[424643012,1781026260000,-2249.62,0.00029232,7]
[424643015,1781026260000,-841.0,0.00029273,4]
[424643013,1781026260000,-2247.65,0.00029232,7]
[424643014,1781026260000,-350.0,0.00029241,6]
[424643016,1781026260000,-442.0,0.00029282,2]
[424643017,1781026260000,-459.0,0.00029282,2]
[424643018,1781026260000,-4618.14,0.00029299,7]
[424643021,1781026260000,-4618.23,0.00029299,7]
[424643024,1781026260000,-1822.0,0.00029301,30]
[424643022,1781026260000,-11491.58,0.00029299,7]
[424643023,1781026260000,-3157.66,0.00029299,7]
[424643026,1781026260000,-531.0,0.00029301,30]
[424643025,1781026260000,-682.0,0.00029301,30]
[424643027,1781026260000,-2718.0,0.00029301,30]
[424643028,1781026260000,-603.0,0.00029301,30]
[424643029,1781026260000,-994.0,0.00029301,30]
[424643030,1781026260000,-279.0,0.00029301,30]
[424643031,1781026260000,-179.97120458,0.00029319,2]
[424643032,1781026260000,-382.0,0.00029326,2]
[424643033,1781026260000,-159.0,0.00029358,30]
[424643035,1781026260000,-1138.0,0.00029358,30]
[424642981,1781026260000,-206.74161396,0.00029045,2]
[424643034,1781026260000,-384.0,0.00029358,30]
[424643009,1781026260000,-2247.6,0.00029201,2]
[424643010,1781026260000,-151.0,0.00029205,2]
[424643020,1781026260000,-3157.67,0.00029299,7]
[424643007,1781026260000,-1246.35,0.000292,7]
[424642984,1781026260000,-221.81559523,0.00029045,2]
[424643008,1781026260000,-2249.52,0.00029201,2]
[424642974,1781026260000,-188.41258152,0.00029045,2]
[424642994,1781026260000,-11500.39,0.00029132,30]
[424642985,1781026260000,-313.42062257,0.00029045,2]
[424642995,1781026260000,-3157.67,0.00029132,30]
[424642986,1781026260000,-436.49734419,0.00029045,2]
[424642987,1781026260000,-311.96119791,0.00029045,2]
[424642991,1781026260000,-2249.52,0.00029105,2]
[424642993,1781026260000,-4618.14,0.00029132,30]
[424642990,1781026260000,-2247.6,0.00029074,30]
[424642988,1781026260000,-152.58806365,0.00029045,2]
[424642989,1781026260000,-2249.52,0.00029074,30]
[424642982,1781026260000,-370.54163099,0.00029045,2]
[424643000,1781026260000,-401.81411277,0.00029137,20]
[424642996,1781026260000,-150.73500221,0.00029132,30]
[424642998,1781026260000,-11491.58,0.00029132,30]
[424643002,1781026260000,-2247.6,0.00029137,7]
[424642999,1781026260000,-3157.66,0.00029132,30]
[424642997,1781026260000,-4618.23,0.00029132,30]
[424642992,1781026260000,-2247.6,0.00029105,2]
[424643001,1781026260000,-2249.52,0.00029137,7]
[424643005,1781026260000,-9445.97,0.000292,14]
[424643003,1781026260000,-2249.52,0.00029169,30]
[424643004,1781026260000,-2247.6,0.00029169,30]
[424643006,1781026260000,-945.22,0.000292,7]
[424643061,1781026261000,-179.97120458,0.00029666,2]
[424643068,1781026261000,-382.0,0.00029705,2]
[424643071,1781026261000,-5573.71804587,0.00029763,2]
[424643072,1781026261000,-1000.0,0.00029763,7]
[424643067,1781026261000,-1246.35,0.000297,7]
[424643065,1781026261000,-9445.97,0.000297,14]
[424643073,1781026261000,-1000.0,0.00029781,7]
[424643076,1781026261000,-542.88841432,0.00029803,2]
[424643074,1781026261000,-500.0,0.00029798,2]
[424643070,1781026261000,-1222.0,0.00029753,2]
[424643066,1781026261000,-945.22,0.000297,7]
[424643075,1781026261000,-1000.0,0.00029801,7]
[424643069,1781026261000,-382.0,0.00029707,2]
[424643085,1781026261000,-539.14184151,0.00029803,2]
[424643079,1781026261000,-480.93419835,0.00029803,2]
[424643080,1781026261000,-536.59262106,0.00029803,2]
[424643078,1781026261000,-626.25328361,0.00029803,2]
[424643081,1781026261000,-610.3626251,0.00029803,2]
[424643083,1781026261000,-569.37325209,0.00029803,2]
[424643082,1781026261000,-558.68802949,0.00029803,2]
[424643084,1781026261000,-206.16331488,0.00029803,2]
[424643088,1781026261000,-243.71772196,0.00029803,2]
[424643086,1781026261000,-728.01803496,0.00029803,2]
[424643087,1781026261000,-557.44239833,0.00029803,2]
[424643089,1781026261000,-505.27408514,0.00029803,2]
[424643077,1781026261000,-354.98947477,0.00029803,2]
[424643062,1781026261000,-382.0,0.00029678,2]
[424643036,1781026261000,-2748.0,0.00029358,30]
[424643058,1781026261000,-200.0,0.00029613,2]
[424643091,1781026261000,-542.99584159,0.00029803,2]
[424643041,1781026261000,-152.0,0.00029395,14]
[424643038,1781026261000,-493.0,0.00029358,30]
[424643040,1781026261000,-382.0,0.00029384,2]
[424643039,1781026261000,-455.74378743,0.00029365,2]
[424643037,1781026261000,-656.0,0.00029358,30]
[424643043,1781026261000,-1000.0,0.00029453,7]
[424643042,1781026261000,-634.93,0.000294,7]
[424643052,1781026261000,-397.0,0.0002955,2]
[424643051,1781026261000,-8092.0,0.0002955,10]
[424643053,1781026261000,-565.0,0.00029576,7]
[424643044,1781026261000,-151.05308585,0.000295,5]
[424643049,1781026261000,-1000.0,0.00029529,7]
[424643050,1781026261000,-150.0,0.00029534,2]
[424643046,1781026261000,-151.38768089,0.000295,5]
[424643047,1781026261000,-151.8171337,0.000295,5]
[424643045,1781026261000,-151.22271011,0.000295,5]
[424643048,1781026261000,-152.5058005,0.000295,5]
[424643055,1781026261000,-166.6875,0.00029589,2]
[424643054,1781026261000,-350.0,0.00029585,8]
[424643059,1781026261000,-350.0,0.00029643,7]
[424643057,1781026261000,-230.0,0.0002961,2]
[424643064,1781026261000,-1087.96503322,0.00029682,7]
[424643063,1781026261000,-382.0,0.00029681,2]
[424643060,1781026261000,-942.73314658,0.00029648,2]
[424643056,1781026261000,-382.0,0.00029598,2]
[424643090,1781026261000,-530.03374184,0.00029803,2]
[424643143,1781026261000,-500.0,0.00029863,60]
[424643094,1781026261000,-486.66786718,0.00029803,2]
[424643125,1781026261000,-500.0,0.00029863,60]
[424643126,1781026261000,-500.0,0.00029863,60]
[424643124,1781026261000,-500.0,0.00029863,60]
[424643130,1781026261000,-213.4810432,0.00029863,60]
[424643131,1781026261000,-500.0,0.00029863,60]
[424643127,1781026261000,-500.0,0.00029863,60]
[424643133,1781026261000,-500.0,0.00029863,60]
[424643128,1781026261000,-500.0,0.00029863,60]
[424643129,1781026261000,-500.0,0.00029863,60]
[424643132,1781026261000,-500.0,0.00029863,60]
[424643092,1781026261000,-378.89985683,0.00029803,2]
[424643136,1781026261000,-500.0,0.00029863,60]
[424643138,1781026261000,-500.0,0.00029863,60]
[424643137,1781026261000,-500.0,0.00029863,60]
[424643135,1781026261000,-176.48236358,0.00029863,60]
[424643139,1781026261000,-500.0,0.00029863,60]
[424643140,1781026261000,-500.0,0.00029863,60]
[424643145,1781026261000,-218.80125859,0.00029863,60]
[424643142,1781026261000,-500.0,0.00029863,60]
[424643141,1781026261000,-334.94822963,0.00029863,60]
[424643144,1781026261000,-500.0,0.00029863,60]
[424643146,1781026261000,-500.0,0.00029863,60]
[424643148,1781026261000,-500.0,0.00029863,60]
[424643147,1781026261000,-500.0,0.00029863,60]
[424643149,1781026261000,-500.0,0.00029863,60]
[424643123,1781026261000,-2000.0,0.0002983,2]
[424643119,1781026261000,-339.6621365,0.00029829,2]
[424643134,1781026261000,-500.0,0.00029863,60]
[424643116,1781026261000,-242.39762518,0.00029829,2]
[424643114,1781026261000,-595.84556516,0.00029829,2]
[424643095,1781026261000,-482.22599178,0.00029803,2]
[424643096,1781026261000,-518.28003192,0.00029803,2]
[424643097,1781026261000,-603.81010098,0.00029803,2]
[424643099,1781026261000,-592.5469032,0.00029803,2]
[424643098,1781026261000,-619.75957813,0.00029803,2]
[424643100,1781026261000,-510.74597057,0.00029803,2]
[424643101,1781026261000,-671.67372699,0.00029803,2]
[424643102,1781026261000,-475.16608031,0.00029803,2]
[424643105,1781026261000,-451.66401282,0.00029803,2]
[424643108,1781026261000,-597.40531565,0.00029803,2]
[424643103,1781026261000,-454.41641249,0.00029803,2]
[424643104,1781026261000,-624.06136701,0.00029803,2]
[424643093,1781026261000,-533.20974494,0.00029803,2]
[424643110,1781026261000,-1000.0,0.00029803,7]
[424643113,1781026261000,-624.35755836,0.00029829,2]
[424643112,1781026261000,-552.38669574,0.00029829,2]
[424643120,1781026261000,-438.52531329,0.00029829,2]
[424643106,1781026261000,-551.23529427,0.00029803,2]
[424643122,1781026261000,-2000.0,0.0002983,2]
[424643121,1781026261000,-2000.0,0.0002983,2]
[424643118,1781026261000,-578.88081309,0.00029829,2]
[424643111,1781026261000,-841.0,0.00029807,4]
[424643115,1781026261000,-549.91371582,0.00029829,2]
[424643109,1781026261000,-470.64612973,0.00029803,2]
[424643107,1781026261000,-498.54647838,0.00029803,2]
[424643117,1781026261000,-481.81992366,0.00029829,2]
[424643188,1781026262000,-552.0,0.00029863,60]
[424643187,1781026262000,-552.0,0.00029863,60]
[424643186,1781026262000,-150.0,0.00029863,60]
[424643184,1781026262000,-150.0,0.00029863,60]
[424643176,1781026262000,-150.0,0.00029863,60]
[424643185,1781026262000,-552.0,0.00029863,60]
[424643183,1781026262000,-552.0,0.00029863,60]
[424643181,1781026262000,-552.0,0.00029863,60]
[424643182,1781026262000,-150.0,0.00029863,60]
[424643190,1781026262000,-552.0,0.00029863,60]
[424643189,1781026262000,-150.0,0.00029863,60]
[424643191,1781026262000,-150.0,0.00029863,60]
[424643197,1781026262000,-150.0,0.00029863,60]
[424643193,1781026262000,-150.0,0.00029863,60]
[424643198,1781026262000,-552.0,0.00029863,60]
[424643199,1781026262000,-150.0,0.00029863,60]
[424643175,1781026262000,-552.0,0.00029863,60]
[424643194,1781026262000,-150.0,0.00029863,60]
[424643203,1781026262000,-150.0,0.00029863,60]
[424643196,1781026262000,-552.0,0.00029863,60]
[424643195,1781026262000,-150.0,0.00029863,60]
[424643202,1781026262000,-552.0,0.00029863,60]
[424643201,1781026262000,-150.0,0.00029863,60]
[424643200,1781026262000,-552.0,0.00029863,60]
[424643192,1781026262000,-552.0,0.00029863,60]
[424643174,1781026262000,-552.0,0.00029863,60]
[424643214,1781026262000,-150.0,0.00029863,60]
[424643180,1781026262000,-150.0,0.00029863,60]
[424643157,1781026262000,-500.0,0.00029863,60]
[424643151,1781026262000,-500.0,0.00029863,60]
[424643153,1781026262000,-500.0,0.00029863,60]
[424643154,1781026262000,-500.0,0.00029863,60]
[424643150,1781026262000,-500.0,0.00029863,60]
[424643155,1781026262000,-500.0,0.00029863,60]
[424643156,1781026262000,-500.0,0.00029863,60]
[424643152,1781026262000,-185.88684237,0.00029863,60]
[424643163,1781026262000,-500.0,0.00029863,60]
[424643164,1781026262000,-500.0,0.00029863,60]
[424643167,1781026262000,-500.0,0.00029863,60]
[424643159,1781026262000,-500.0,0.00029863,60]
[424643172,1781026262000,-150.0,0.00029863,60]
[424643168,1781026262000,-320.91436927,0.00029863,60]
[424643158,1781026262000,-500.0,0.00029863,60]
[424643166,1781026262000,-500.0,0.00029863,60]
[424643169,1781026262000,-150.0,0.00029863,60]
[424643160,1781026262000,-500.0,0.00029863,60]
[424643161,1781026262000,-500.0,0.00029863,60]
[424643162,1781026262000,-500.0,0.00029863,60]
[424643170,1781026262000,-150.0,0.00029863,60]
[424643171,1781026262000,-150.0,0.00029863,60]
[424643177,1781026262000,-552.0,0.00029863,60]
[424643178,1781026262000,-150.0,0.00029863,60]
[424643179,1781026262000,-552.0,0.00029863,60]
[424643173,1781026262000,-175.33128173,0.00029863,60]
[424643165,1781026262000,-500.0,0.00029863,60]
[424643213,1781026262000,-552.0,0.00029863,60]
[424643216,1781026262000,-168.48877466,0.00029863,60]
[424643204,1781026262000,-552.0,0.00029863,60]
[424643238,1781026262000,-150.0,0.00029863,60]
[424643239,1781026262000,-150.0,0.00029863,60]
[424643240,1781026262000,-150.0,0.00029863,60]
[424643241,1781026262000,-150.0,0.00029863,60]
[424643242,1781026262000,-150.0,0.00029863,60]
[424643243,1781026262000,-150.0,0.00029863,60]
[424643244,1781026262000,-150.0,0.00029863,60]
[424643245,1781026262000,-150.0,0.00029863,60]
[424643246,1781026262000,-150.0,0.00029863,60]
[424643247,1781026262000,-150.0,0.00029863,60]
[424643249,1781026262000,-150.0,0.00029863,60]
[424643251,1781026262000,-150.0,0.00029863,60]
[424643250,1781026262000,-150.0,0.00029863,60]
[424643252,1781026262000,-150.0,0.00029863,60]
[424643253,1781026262000,-150.0,0.00029863,60]
[424643258,1781026262000,-150.0,0.00029863,60]
[424643254,1781026262000,-150.0,0.00029863,60]
[424643259,1781026262000,-150.0,0.00029863,60]
[424643256,1781026262000,-150.0,0.00029863,60]
[424643255,1781026262000,-150.0,0.00029863,60]
[424643257,1781026262000,-150.0,0.00029863,60]
[424643260,1781026262000,-150.0,0.00029863,60]
[424643262,1781026262000,-166.36916655,0.00029863,60]
[424643261,1781026262000,-150.0,0.00029863,60]
[424643215,1781026262000,-150.0,0.00029863,60]
[424643236,1781026262000,-150.0,0.00029863,60]
[424643237,1781026262000,-150.0,0.00029863,60]
[424643248,1781026262000,-150.0,0.00029863,60]
[424643234,1781026262000,-150.0,0.00029863,60]
[424643235,1781026262000,-150.0,0.00029863,60]
[424643205,1781026262000,-150.0,0.00029863,60]
[424643209,1781026262000,-552.0,0.00029863,60]
[424643207,1781026262000,-500.0,0.00029863,60]
[424643206,1781026262000,-500.0,0.00029863,60]
[424643208,1781026262000,-500.0,0.00029863,60]
[424643212,1781026262000,-150.0,0.00029863,60]
[424643211,1781026262000,-611.1993567,0.00029863,60]
[424643218,1781026262000,-150.0,0.00029863,60]
[424643217,1781026262000,-552.0,0.00029863,60]
[424643221,1781026262000,-552.0,0.00029863,60]
[424643220,1781026262000,-150.0,0.00029863,60]
[424643219,1781026262000,-552.0,0.00029863,60]
[424643210,1781026262000,-150.0,0.00029863,60]
[424643232,1781026262000,-150.0,0.00029863,60]
[424643222,1781026262000,-150.0,0.00029863,60]
[424643233,1781026262000,-150.0,0.00029863,60]
[424643231,1781026262000,-150.0,0.00029863,60]
[424643230,1781026262000,-150.0,0.00029863,60]
[424643229,1781026262000,-150.0,0.00029863,60]
[424643227,1781026262000,-561.11085494,0.00029863,60]
[424643225,1781026262000,-552.0,0.00029863,60]
[424643223,1781026262000,-552.0,0.00029863,60]
[424643224,1781026262000,-150.0,0.00029863,60]
[424643226,1781026262000,-150.0,0.00029863,60]
[424643228,1781026262000,-150.0,0.00029863,60]
[424643301,1781026263000,-610.0,0.00029863,2]
[424643303,1781026263000,-610.0,0.00029863,2]
[424643300,1781026263000,-615.0,0.00029863,60]
[424643302,1781026263000,-615.0,0.00029863,60]
[424643304,1781026263000,-615.0,0.00029863,60]
[424643305,1781026263000,-610.0,0.00029863,2]
[424643296,1781026263000,-610.0,0.00029863,2]
[424643298,1781026263000,-615.0,0.00029863,60]
[424643297,1781026263000,-427.55740821,0.00029863,2]
[424643294,1781026263000,-615.0,0.00029863,60]
[424643307,1781026263000,-610.0,0.00029863,2]
[424643299,1781026263000,-610.0,0.00029863,2]
[424643306,1781026263000,-615.0,0.00029863,60]
[424643324,1781026263000,-615.0,0.00029863,60]
[424643314,1781026263000,-610.0,0.00029863,2]
[424643308,1781026263000,-615.0,0.00029863,60]
[424643313,1781026263000,-610.0,0.00029863,2]
[424643309,1781026263000,-610.0,0.00029863,2]
[424643310,1781026263000,-610.0,0.00029863,2]
[424643311,1781026263000,-610.0,0.00029863,2]
[424643312,1781026263000,-615.0,0.00029863,60]
[424643316,1781026263000,-615.0,0.00029863,60]
[424643315,1781026263000,-610.0,0.00029863,2]
[424643329,1781026263000,-616.65999843,0.00029863,2]
[424643319,1781026263000,-610.0,0.00029863,2]
[424643295,1781026263000,-500.0,0.00029863,2]
[424643317,1781026263000,-610.0,0.00029863,2]
[424643285,1781026263000,-500.0,0.00029863,2]
[424643266,1781026263000,-500.0,0.00029863,60]
[424643291,1781026263000,-615.0,0.00029863,60]
[424643263,1781026263000,-150.0,0.00029863,60]
[424643318,1781026263000,-615.0,0.00029863,60]
[424643267,1781026263000,-500.0,0.00029863,60]
[424643264,1781026263000,-150.0,0.00029863,60]
[424643268,1781026263000,-281.70293665,0.00029863,60]
[424643269,1781026263000,-500.0,0.00029863,2]
[424643265,1781026263000,-184.28452949,0.00029863,60]
[424643270,1781026263000,-615.0,0.00029863,60]
[424643272,1781026263000,-615.0,0.00029863,60]
[424643282,1781026263000,-500.0,0.00029863,2]
[424643273,1781026263000,-500.0,0.00029863,2]
[424643271,1781026263000,-500.0,0.00029863,2]
[424643278,1781026263000,-615.0,0.00029863,60]
[424643274,1781026263000,-500.0,0.00029863,2]
[424643276,1781026263000,-615.0,0.00029863,60]
[424643275,1781026263000,-500.0,0.00029863,2]
[424643281,1781026263000,-610.0,0.00029863,2]
[424643277,1781026263000,-500.0,0.00029863,2]
[424643279,1781026263000,-500.0,0.00029863,2]
[424643284,1781026263000,-610.0,0.00029863,2]
[424643283,1781026263000,-615.0,0.00029863,60]
[424643288,1781026263000,-615.0,0.00029863,60]
[424643289,1781026263000,-500.0,0.00029863,2]
[424643286,1781026263000,-615.0,0.00029863,60]
[424643292,1781026263000,-610.0,0.00029863,2]
[424643287,1781026263000,-610.0,0.00029863,2]
[424643290,1781026263000,-610.0,0.00029863,2]
[424643293,1781026263000,-500.0,0.00029863,2]
[424643321,1781026263000,-610.0,0.00029863,2]
[424643280,1781026263000,-615.0,0.00029863,60]
[424643323,1781026263000,-610.0,0.00029863,2]
[424643356,1781026263000,-500.0,0.00029863,60]
[424643358,1781026263000,-500.0,0.00029863,2]
[424643359,1781026263000,-500.0,0.00029863,60]
[424643357,1781026263000,-422.0,0.00029863,60]
[424643360,1781026263000,-422.0,0.00029863,60]
[424643361,1781026263000,-1674.0,0.00029863,60]
[424643362,1781026263000,-500.0,0.00029863,60]
[424643366,1781026263000,-422.0,0.00029863,60]
[424643363,1781026263000,-422.0,0.00029863,60]
[424643365,1781026263000,-1674.0,0.00029863,60]
[424643367,1781026263000,-500.0,0.00029863,60]
[424643382,1781026263000,-1674.0,0.00029863,60]
[424643364,1781026263000,-500.0,0.00029863,2]
[424643368,1781026263000,-500.0,0.00029863,2]
[424643369,1781026263000,-1674.0,0.00029863,60]
[424643371,1781026263000,-1674.0,0.00029863,60]
[424643373,1781026263000,-422.0,0.00029863,60]
[424643372,1781026263000,-500.0,0.00029863,60]
[424643370,1781026263000,-500.0,0.00029863,2]
[424643374,1781026263000,-1674.0,0.00029863,60]
[424643379,1781026263000,-500.0,0.00029863,2]
[424643376,1781026263000,-500.0,0.00029863,60]
[424643375,1781026263000,-500.0,0.00029863,2]
[424643378,1781026263000,-1674.0,0.00029863,60]
[424643380,1781026263000,-500.0,0.00029863,60]
[424643377,1781026263000,-422.0,0.00029863,60]
[424643320,1781026263000,-615.0,0.00029863,60]
[424643355,1781026263000,-500.0,0.00029863,2]
[424643348,1781026263000,-455.05138252,0.00029863,60]
[424643381,1781026263000,-422.0,0.00029863,60]
[424643347,1781026263000,-500.0,0.00029863,2]
[424643353,1781026263000,-500.0,0.00029863,2]
[424643326,1781026263000,-615.0,0.00029863,60]
[424643325,1781026263000,-610.0,0.00029863,2]
[424643328,1781026263000,-627.11452708,0.00029863,60]
[424643327,1781026263000,-610.0,0.00029863,2]
[424643330,1781026263000,-150.0,0.00029863,60]
[424643333,1781026263000,-219.70235677,0.00029863,60]
[424643335,1781026263000,-1674.0,0.00029863,60]
[424643334,1781026263000,-1674.0,0.00029863,60]
[424643338,1781026263000,-1674.0,0.00029863,60]
[424643340,1781026263000,-1674.0,0.00029863,60]
[424643331,1781026263000,-150.0,0.00029863,60]
[424643342,1781026263000,-500.0,0.00029863,60]
[424643332,1781026263000,-150.0,0.00029863,60]
[424643339,1781026263000,-500.0,0.00029863,60]
[424643349,1781026263000,-1674.0,0.00029863,60]
[424643336,1781026263000,-1674.0,0.00029863,60]
[424643345,1781026263000,-500.0,0.00029863,60]
[424643354,1781026263000,-500.0,0.00029863,60]
[424643343,1781026263000,-1674.0,0.00029863,60]
[424643346,1781026263000,-1674.0,0.00029863,60]
[424643322,1781026263000,-615.0,0.00029863,60]
[424643351,1781026263000,-150.0,0.00029863,2]
[424643344,1781026263000,-500.0,0.00029863,2]
[424643337,1781026263000,-500.0,0.00029863,60]
[424643350,1781026263000,-500.0,0.00029863,2]